bitfinex/quotes_ETHUSD_20230109
["timestamp","ask_amount","ask_price","bid_price","bid_amount"]
[1673276193627,5.15063306,1327.1,1326.8,71.67608178]
[1673276193773,5.15063306,1327.1,1326.8,64.13915178]
[1673276193774,2.26105928,1327.0,1326.8,64.13915178]
[1673276194295,3.94739873,1327.0,1326.8,64.13915178]
[1673276195239,1.68633945,1326.9,1326.8,64.13915178]
[1673276195451,1.68633945,1326.9,1326.8,59.60222178]
[1673276195975,9.22269945,1326.9,1326.8,38.06544178]
[1673276196232,9.22269945,1326.9,1326.8,35.06544178]
[1673276196233,5.09563582,1326.9,1326.8,35.06544178]
[1673276196396,2.83457654,1326.9,1326.8,35.06544178]
[1673276196604,2.7700367,1326.9,1326.8,35.06544178]
[1673276196850,2.7700367,1326.9,1326.8,42.60237178]
[1673276197020,1.68633945,1326.9,1326.8,42.60237178]
[1673276197236,1.68633945,1326.9,1326.8,35.06544178]
[1673276197712,3.94739873,1326.9,1326.8,35.06544178]
[1673276198646,3.94739873,1326.9,1326.8,0.06544178]
[1673276198853,3.94739873,1326.9,1326.7,45.56415178]
[1673276199263,2.26105928,1326.9,1326.8,7.53693]
[1673276199626,6.00115653,1326.9,1326.8,0.06544178]
[1673276199955,6.00115653,1326.9,1326.7,14.06544178]
[1673276199956,26.41371709,1326.9,1326.7,14.06544178]
[1673276200106,3.93966636,1326.8,1326.7,14.06544178]
[1673276200321,3.93966636,1326.8,1326.7,17.06544178]
[1673276200741,11.47659636,1326.8,1326.7,17.06544178]
[1673276200947,1.75296828,1326.8,1326.7,17.06544178]
[1673276201258,13.00466271,1326.8,1326.7,17.06544178]
[1673276201502,13.06920255,1326.8,1326.7,17.06544178]
[1673276201726,5.53227255,1326.8,1326.7,17.06544178]
[1673276202132,4.0042062,1326.8,1326.7,32.14042178]
[1673276202336,3.93966636,1326.8,1326.7,24.60293178]
[1673276202559,3.93966636,1326.8,1326.7,39.67791178]
[1673276203465,3.93966636,1326.8,1326.7,24.60293178]
[1673276203671,2.25123792,1326.8,1326.7,17.06544178]
[1673276203884,2.76531909,1326.8,1326.7,17.06544178]
[1673276204098,13.12728303,1326.8,1326.7,0.06544178]
[1673276204338,5.65489287,1326.8,1326.6,35.06544178]
[1673276204532,1.68950441,1326.7,1326.6,42.60339178]
[1673276204740,1.68950441,1326.7,1326.6,60.67951178]
[1673276205092,1.68950441,1326.7,1326.6,74.67951178]
[1673276205461,3.94074233,1326.7,1326.6,60.67951178]
[1673276205670,3.94074233,1326.7,1326.6,74.67951178]
[1673276206835,3.94074233,1326.7,1326.6,52.06544178]
[1673276207046,2.25123792,1326.7,1326.6,24.60350178]
[1673276207400,3.33911511,1326.7,1326.6,7.60350178]
[1673276207610,3.33911511,1326.7,1326.6,0.06544178]
[1673276207822,18.41409511,1326.7,1326.4,7.60420178]
[1673276207977,1.69070599,1326.5,1326.4,0.06544178]
[1673276208190,1.69070599,1326.5,1326.4,3.0]
[1673276208403,1.69070599,1326.5,1326.4,10.5392]
[1673276208726,1.69070599,1326.5,1326.4,10.60259937]
[1673276209401,1.69070599,1326.5,1326.4,18.14179937]
[1673276209560,1.69070599,1326.5,1326.4,10.60259937]
[1673276209766,2.37416143,1326.5,1326.4,0.06544178]
[1673276209976,4.62843608,1326.5,1326.3,17.57312288]
[1673276210469,1.69070599,1326.4,1326.3,17.57312288]
[1673276210763,4.69297592,1326.5,1326.3,25.11249288]
[1673276210922,2.37416143,1326.5,1326.3,23.81342288]
[1673276211389,1.69070599,1326.5,1326.3,23.81342288]
[1673276212404,4.57522048,1326.6,1326.3,23.81342288]
[1673276212634,4.51068064,1326.6,1326.3,23.81342288]
[1673276212831,12.67612048,1326.7,1326.3,50.50985352]
[1673276213037,4.00952048,1326.7,1326.5,4.0]
[1673276213277,3.94498064,1326.7,1326.5,35.51852]
[1673276213493,3.94498064,1326.7,1326.5,35.58396178]
[1673276215283,3.94498064,1326.7,1326.5,31.58396178]
[1673276215505,1.69070599,1326.7,1326.5,31.58396178]
[1673276215807,3.94498064,1326.7,1326.5,31.58396178]
[1673276216540,1.69070599,1326.6,1326.5,31.58396178]
[1673276216760,1.69070599,1326.6,1326.5,34.58396178]
[1673276217383,1.69070599,1326.6,1326.5,34.81396178]
[1673276217544,1.69070599,1326.6,1326.5,4.65944178]
[1673276217755,1.69070599,1326.6,1326.5,3.23]
[1673276217968,1.69070599,1326.6,1326.5,3.0]
[1673276218282,1.69070599,1326.6,1326.5,10.53863]
[1673276218523,3.94498064,1326.6,1326.5,10.60407178]
[1673276218737,3.94498064,1326.6,1326.5,3.06544178]
[1673276218909,3.94498064,1326.6,1326.5,3.0]
[1673276219119,3.94498064,1326.6,1326.5,10.53863]
[1673276219376,3.94498064,1326.6,1326.5,3.06544178]
[1673276219706,3.94498064,1326.6,1326.5,10.53863]
[1673276220010,3.94498064,1326.6,1326.5,10.60407178]
[1673276220169,11.48304064,1326.6,1326.5,3.06544178]
[1673276220381,11.48304064,1326.6,1326.5,3.0]
[1673276220382,11.54758048,1326.6,1326.5,3.0]
[1673276220647,4.00952048,1326.6,1326.5,3.0]
[1673276220820,4.44532709,1326.6,1326.5,3.0]
[1673276221224,2.25427465,1326.6,1326.5,3.0]
[1673276221650,2.25427465,1326.6,1326.5,10.53863]
[1673276221999,3.94580688,1326.6,1326.5,3.06544178]
[1673276222169,3.94580688,1326.6,1326.5,3.0]
[1673276222380,1.69153223,1326.6,1326.5,3.0]
[1673276222623,1.69353223,1326.6,1326.5,3.0]
[1673276222851,1.69153223,1326.6,1326.5,3.0]
[1673276223057,3.94580688,1326.6,1326.5,3.0]
[1673276223746,2.25427465,1326.6,1326.5,3.0]
[1673276225376,5.07930859,1326.6,1326.5,10.53863]
[1673276225562,5.14384843,1326.6,1326.5,10.60407178]
[1673276226197,5.14384843,1326.6,1326.5,25.68133178]
[1673276226198,1.75699669,1326.6,1326.5,25.68133178]
[1673276226406,3.9467315,1326.6,1326.5,25.68133178]
[1673276226633,1.69245685,1326.6,1326.5,25.68133178]
[1673276226945,2.25427465,1326.6,1326.5,3.06544178]
[1673276227155,2.25427465,1326.6,1326.5,3.0]
[1673276227156,5.59369343,1326.6,1326.5,3.0]
[1673276227375,5.65823327,1326.6,1326.5,3.0]
[1673276227534,3.40395862,1326.6,1326.5,3.0]
[1673276227747,3.33941878,1326.6,1326.5,3.0]
[1673276228070,3.95006135,1326.6,1326.5,25.61589]
[1673276228281,3.95006135,1326.6,1326.5,25.68133178]
[1673276228542,1.69486276,1326.6,1326.5,25.67933178]
[1673276228705,1.69286276,1326.6,1326.5,25.68133178]
[1673276229259,3.95006135,1326.6,1326.5,25.68133178]
[1673276230809,3.95006135,1326.6,1326.5,25.67827294]
[1673276232155,3.95006135,1326.6,1326.5,18.13964294]
[1673276232646,2.25719859,1326.6,1326.5,18.13964294]
[1673276232947,10.87777118,1326.6,1326.5,3.06238294]
[1673276233163,18.48037102,1326.6,1326.5,2.99694116]
[1673276233478,0.57921708,1326.6,1326.5,2.99694116]
[1673276233783,0.51467724,1326.6,1326.5,2.99694116]
[1673276233940,3.33832921,1326.6,1326.5,10.53557116]
[1673276234149,3.33832921,1326.6,1326.5,3.06238294]
[1673276234398,3.33832921,1326.6,1326.5,10.53557116]
[1673276234610,3.33832921,1326.6,1326.5,10.60101294]
[1673276235462,0.51467724,1326.6,1326.5,10.60101294]
[1673276235775,3.33879484,1326.6,1326.5,25.67827294]
[1673276236095,2.8241176,1326.6,1326.5,25.67827294]
[1673276236255,5.08329186,1326.6,1326.5,25.67827294]
[1673276236463,5.1478317,1326.6,1326.5,25.67827294]
[1673276237841,2.3237141,1326.6,1326.5,25.67827294]
[1673276238038,2.25917426,1326.6,1326.5,25.67827294]
[1673276238249,3.95377909,1326.6,1326.5,25.67827294]
[1673276239450,2.25917426,1326.6,1326.5,25.67827294]
[1673276240661,3.95394794,1326.6,1326.5,25.67827294]
[1673276240875,2.25917426,1326.6,1326.5,25.67827294]
[1673276241350,5.08329186,1326.6,1326.5,25.67827294]
[1673276241559,2.3237141,1326.6,1326.5,25.67827294]
[1673276241723,2.25917426,1326.6,1326.5,25.67827294]
[1673276241947,5.08329186,1326.6,1326.5,25.67827294]
[1673276242153,5.1478317,1326.6,1326.5,25.67827294]
[1673276243137,5.1478317,1326.6,1326.5,3.06238294]
[1673276243352,2.88865744,1326.6,1326.5,2.99694116]
[1673276243574,2.8241176,1326.6,1326.5,2.99694116]
[1673276243872,2.8261176,1326.6,1326.5,10.53557116]
[1673276244093,2.8241176,1326.6,1326.5,10.60101294]
[1673276244393,2.8241176,1326.6,1326.5,3.06238294]
[1673276244609,2.8241176,1326.6,1326.5,2.99694116]
[1673276244835,2.8241176,1326.6,1326.5,10.53557116]
[1673276244992,2.8241176,1326.6,1326.5,18.13964294]
[1673276245212,2.8261176,1326.6,1326.5,18.13764294]
[1673276245522,2.8261176,1326.6,1326.5,18.13964294]
[1673276245523,2.8241176,1326.6,1326.5,18.13964294]
[1673276245935,4.01705006,1326.7,1326.5,18.13964294]
[1673276246168,5.80711334,1326.7,1326.5,18.13964294]
[1673276246378,2.82525378,1326.6,1326.5,25.67827294]
[1673276247019,2.82525378,1326.6,1326.5,10.60101294]
[1673276247217,2.82525114,1326.6,1326.5,18.13964294]
[1673276247772,3.63838157,1326.6,1326.5,18.13964294]
[1673276247924,0.81313043,1326.6,1326.5,18.13964294]
[1673276248131,0.81313043,1326.6,1326.5,3.06238294]
[1673276248475,0.81313043,1326.6,1326.5,18.07420116]
[1673276248655,4.20004065,1326.6,1326.5,17.63964294]
[1673276248869,0.81313043,1326.6,1326.5,25.17827294]
[1673276249083,2.82525192,1326.6,1326.5,25.17827294]
[1673276250247,2.82525192,1326.6,1326.5,17.63964294]
[1673276250455,2.82525192,1326.6,1326.5,2.56238294]
[1673276250754,5.30605318,1326.7,1326.5,2.49694116]
[1673276250970,5.30605318,1326.7,1326.5,10.03557116]
[1673276251181,5.30605318,1326.7,1326.5,10.10101294]
[1673276251825,5.30605318,1326.7,1326.5,17.63964294]
[1673276252499,5.30605318,1326.7,1326.5,10.10101294]
[1673276252917,3.38691022,1326.6,1326.5,0.06544178]
[1673276253090,1.68435932,1326.6,1326.4,24.19862178]
[1673276253434,5.08617839,1326.5,1326.4,39.27645178]
[1673276253666,2.8901945,1326.5,1326.4,42.27645178]
[1673276253839,5.08634082,1326.5,1326.4,42.27645178]
[1673276254018,2.8901945,1326.5,1326.4,42.27645178]
[1673276254225,2.82565466,1326.5,1326.4,25.68205178]
[1673276255691,5.0863211,1326.5,1326.4,25.68205178]
[1673276255905,5.15086094,1326.5,1326.4,25.68205178]
[1673276256162,2.8901945,1326.5,1326.4,25.68205178]
[1673276256380,5.08634948,1326.5,1326.4,25.68205178]
[1673276256705,2.8901945,1326.5,1326.4,25.68205178]
[1673276257006,3.62180106,1326.5,1326.4,0.06544178]
[1673276257216,3.62180106,1326.5,1326.3,64.83517178]
[1673276257529,3.95608234,1326.4,1326.3,71.68431178]
[1673276257745,3.95608234,1326.4,1326.3,74.68431178]
[1673276258125,3.95608234,1326.4,1326.3,38.06544178]
[1673276258126,9.79981848,1326.4,1326.3,38.06544178]
[1673276258337,2.8901945,1326.4,1326.3,38.06544178]
[1673276258551,5.0863641,1326.4,1326.3,53.14498178]
[1673276258765,2.32524928,1326.4,1326.3,60.68475178]
[1673276259072,2.32524928,1326.4,1326.3,53.14498178]
[1673276259073,5.0863641,1326.4,1326.3,53.14498178]
[1673276259306,5.66599433,1326.4,1326.3,45.60521178]
[1673276259478,5.66599433,1326.4,1326.3,18.14498178]
[1673276259694,2.84033967,1326.4,1326.3,25.68475178]
[1673276259939,2.77579983,1326.4,1326.3,25.68475178]
[1673276260130,2.77579983,1326.4,1326.3,53.14498178]
[1673276260546,2.26070944,1326.4,1326.3,53.14498178]
[1673276260796,3.95596577,1326.4,1326.3,45.60521178]
[1673276261388,3.95596577,1326.4,1326.3,60.68475178]
[1673276262183,3.95596577,1326.4,1326.3,53.14498178]
[1673276262314,3.95596577,1326.4,1326.3,60.68475178]
[1673276262524,1.69525633,1326.4,1326.3,60.68475178]
[1673276263782,1.69220588,1326.4,1326.3,60.68475178]
[1673276263998,1.13001145,1326.4,1326.3,60.68475178]
[1673276264242,1.12998954,1326.4,1326.3,60.68475178]
[1673276264569,1.12999976,1326.4,1326.3,60.68475178]
[1673276265626,1.12999172,1326.4,1326.3,62.38475178]
[1673276265944,5.71660394,1326.6,1326.3,76.38475178]
[1673276266094,5.71660394,1326.6,1326.4,3.0]
[1673276266095,1.12992727,1326.5,1326.4,3.0]
[1673276266304,1.12992727,1326.5,1326.4,25.6176]
[1673276266541,1.12992727,1326.5,1326.4,25.68304178]
[1673276270046,1.12992727,1326.5,1326.4,32.88870242]
[1673276270330,0.06453984,1326.7,1326.5,2.25253227]
[1673276270542,5.15090394,1326.8,1326.7,22.61247]
[1673276270769,5.15090394,1326.8,1326.7,22.67791178]
[1673276270770,2.8901945,1326.8,1326.7,22.67791178]
[1673276270981,5.08415991,1326.8,1326.7,22.67791178]
[1673276271157,5.14869975,1326.8,1326.7,22.67791178]
[1673276271814,2.32304509,1326.8,1326.7,22.67791178]
[1673276272004,2.25850525,1326.8,1326.7,22.67791178]
[1673276272354,5.08415991,1326.8,1326.7,22.67791178]
[1673276272524,5.14869975,1326.8,1326.7,22.67791178]
[1673276273307,2.32304509,1326.8,1326.7,22.67791178]
[1673276273612,2.25850525,1326.8,1326.7,22.67791178]
[1673276273992,4.51744665,1326.8,1326.7,24.37191178]
[1673276274416,3.95184665,1326.8,1326.7,24.37191178]
[1673276275288,1.6933414,1326.8,1326.7,24.37191178]
[1673276275502,3.95184665,1326.8,1326.7,24.37191178]
[1673276275825,2.82181906,1326.8,1326.7,28.16957242]
[1673276276124,1.12847766,1326.8,1326.7,28.39957242]
[1673276278183,1.12847766,1326.8,1326.7,31.39957242]
[1673276278724,2.82181906,1326.8,1326.7,31.39957242]
[1673276280337,1.6933414,1326.8,1326.7,31.39957242]
[1673276280507,1.6933414,1326.8,1326.7,12.29693178]
[1673276280722,2.82107439,1326.8,1326.7,27.37191178]
[1673276281282,1.12773299,1326.8,1326.7,27.03891178]
[1673276281963,2.82107439,1326.8,1326.7,27.03891178]
[1673276282751,1.12773299,1326.8,1326.7,27.03891178]
[1673276283595,2.82107439,1326.8,1326.7,27.03891178]
[1673276284597,2.82107439,1326.8,1326.7,19.50142178]
[1673276284814,2.82107439,1326.8,1326.7,27.03891178]
[1673276285259,1.12773299,1326.8,1326.7,27.03891178]
[1673276285680,2.82107439,1326.8,1326.7,27.03891178]
[1673276286276,1.12773299,1326.8,1326.7,27.03891178]
[1673276286492,1.12773299,1326.8,1326.7,19.50142178]
[1673276286740,2.82107439,1326.8,1326.7,19.50142178]
[1673276287142,2.82107439,1326.8,1326.7,27.03891178]
[1673276287904,1.12773299,1326.8,1326.7,27.03891178]
[1673276288120,2.82107439,1326.8,1326.7,27.03891178]
[1673276288281,1.12773299,1326.8,1326.7,25.67791178]
[1673276288488,2.82107439,1326.9,1326.7,27.03671348]
[1673276288697,1.12773299,1326.9,1326.7,27.03671348]
[1673276289349,2.82107439,1326.9,1326.7,27.03671348]
[1673276289766,2.82107439,1326.9,1326.7,41.03671348]
[1673276290975,1.12773299,1326.8,1326.7,41.03671348]
[1673276291131,1.12773299,1326.8,1326.7,41.26671348]
[1673276291805,1.12773299,1326.8,1326.7,60.67771348]
[1673276292018,1.63569095,1326.8,1326.7,25.67771348]
[1673276292241,3.32903235,1326.8,1326.7,25.67771348]
[1673276292868,3.32903235,1326.8,1326.7,3.06524348]
[1673276293050,3.32903235,1326.8,1326.7,3.0]
[1673276293264,3.32903235,1326.8,1326.7,7.53749]
[1673276293265,2.20129936,1326.8,1326.7,7.53749]
[1673276293485,2.20129936,1326.8,1326.7,7.60273348]
[1673276293695,2.20129936,1326.8,1326.7,15.14022348]
[1673276293935,3.32836971,1326.8,1326.7,15.14022348]
[1673276294355,3.32837545,1326.8,1326.7,15.14022348]
[1673276294786,3.32837545,1326.8,1326.7,22.67771348]
[1673276295288,2.20129936,1326.8,1326.7,22.67771348]
[1673276295621,4.45980461,1326.8,1326.7,22.67771348]
[1673276295782,2.20129936,1326.8,1326.7,0.06524348]
[1673276295992,2.20129936,1326.8,1326.7,7.53749]
[1673276296203,4.45980461,1326.8,1326.7,15.14022348]
[1673276296454,3.32855263,1326.8,1326.7,0.06524348]
[1673276296670,1.19179311,1326.9,1326.7,38.75713064]
[1673276296887,1.12725327,1327.0,1326.8,6.89766064]
[1673276297201,1.12725327,1327.0,1326.9,30.14544]
[1673276297366,1.12725327,1327.0,1326.9,30.21068348]
[1673276297571,1.12725327,1327.0,1326.9,31.57168348]
[1673276297796,8.10073984,1327.1,1326.9,36.1257013]
[1673276298012,8.10073984,1327.1,1327.0,1.347]
[1673276298013,9.79408124,1327.1,1327.0,1.347]
[1673276298245,1.75788124,1327.1,1327.0,16.41858]
[1673276298451,1.6933414,1327.1,1327.0,24.01961348]
[1673276298772,5.14869975,1327.2,1327.0,24.01961348]
[1673276298773,4.01638649,1327.2,1327.0,24.01961348]
[1673276298981,1.6933414,1327.1,1327.0,24.01961348]
[1673276299206,1.6933414,1327.1,1327.0,16.48382348]
[1673276299351,4.01638649,1327.2,1327.0,24.01961348]
[1673276299564,1.6933414,1327.1,1327.0,24.01961348]
[1673276299992,1.6933414,1327.1,1327.0,16.48382348]
[1673276300191,1.6933414,1327.1,1327.0,24.01961348]
[1673276300656,4.01638649,1327.2,1327.0,24.01961348]
[1673276300876,1.6933414,1327.1,1327.0,27.81727412]
[1673276301094,1.75788124,1327.2,1327.0,35.58591655]
[1673276301305,1.6933414,1327.2,1327.0,35.35591655]
[1673276301620,11.96143639,1327.3,1327.0,35.35591655]
[1673276301924,1.6433414,1327.2,1327.1,4.02766064]
[1673276302133,1.6433414,1327.2,1327.1,26.63332064]
[1673276302296,1.6433414,1327.2,1327.1,15.13568348]
[1673276302506,1.6433414,1327.2,1327.1,1.57424348]
[1673276302716,1.6433414,1327.2,1327.1,1.509]
[1673276303370,1.6433414,1327.2,1327.0,66.24218309]
[1673276303581,3.90184665,1327.2,1327.0,70.04050373]
[1673276303785,1.6433414,1327.2,1327.0,77.57629373]
[1673276305491,1.6433414,1327.2,1327.0,76.22929373]
[1673276305819,3.90184665,1327.2,1327.0,75.47293655]
[1673276306035,3.90184665,1327.2,1327.0,52.86575655]
[1673276306186,3.90184665,1327.2,1327.0,60.40131655]
[1673276306398,3.90184665,1327.2,1327.0,75.47289655]
[1673276306652,1.6433414,1327.2,1327.0,75.47289655]
[1673276307161,3.90184665,1327.2,1327.0,75.47289655]
[1673276307372,3.90184665,1327.2,1327.0,67.93710655]
[1673276307597,3.90184665,1327.2,1327.0,71.67523591]
[1673276307785,1.12695471,1327.1,1327.0,71.67523591]
[1673276308186,1.12695471,1327.1,1327.0,74.67523591]
[1673276308651,2.77029611,1327.2,1327.0,74.67523591]
[1673276308986,2.77029611,1327.2,1327.1,7.79766064]
[1673276309149,2.77029611,1327.2,1327.1,30.69856412]
[1673276309150,1.12695471,1327.2,1327.1,30.69856412]
[1673276309341,1.22687961,1327.3,1327.1,30.69856412]
[1673276309554,0.0999249,1327.3,1327.2,4.02766064]
[1673276309913,0.0999249,1327.3,1327.2,26.63161064]
[1673276310122,0.0999249,1327.3,1327.2,26.69685412]
[1673276310291,1.22674575,1327.3,1327.2,26.69685412]
[1673276310500,1.22674575,1327.3,1327.2,43.69685412]
[1673276311566,2.91631669,1327.3,1327.2,43.69685412]
[1673276312126,1.22674575,1327.3,1327.2,43.69685412]
[1673276312504,2.91631669,1327.3,1327.2,43.69685412]
[1673276312717,1.22674575,1327.3,1327.2,43.69685412]
[1673276312928,2.91631669,1327.3,1327.2,43.69685412]
[1673276313379,2.91631669,1327.3,1327.2,78.69685412]
[1673276313760,1.22674575,1327.3,1327.2,78.69685412]
[1673276315030,1.22674575,1327.3,1327.2,71.16220412]
[1673276315383,2.91631669,1327.3,1327.2,63.62755412]
[1673276315557,2.91631669,1327.3,1327.2,56.09290412]
[1673276315765,2.91631669,1327.3,1327.2,63.62755412]
[1673276316093,2.91631669,1327.3,1327.2,74.89919348]
[1673276316310,2.91631669,1327.3,1327.2,74.66919348]
[1673276316915,2.91631669,1327.3,1327.2,74.82016535]
[1673276318635,1.78949584,1327.3,1327.2,53.28551535]
[1673276318849,1.78949584,1327.3,1327.2,74.82016535]
[1673276319302,4.04800109,1327.3,1327.2,74.82016535]
[1673276319618,4.04800109,1327.3,1327.2,59.75086535]
[1673276319827,4.81569172,1327.3,1327.2,35.21621535]
[1673276319984,10.66021078,1327.3,1327.2,0.21621535]
[1673276320193,6.01631528,1327.3,1327.2,0.15097187]
[1673276321270,6.01631528,1327.3,1327.2,0.10097187]
[1673276321721,28.61858528,1327.3,1327.2,0.10097187]
[1673276322242,6.01018042,1327.3,1327.2,0.10097187]
[1673276323374,13.54427042,1327.3,1327.2,0.10097187]
[1673276324187,11.29190003,1327.3,1327.2,0.10097187]
[1673276324394,13.54455854,1327.3,1327.2,0.10097187]
[1673276324605,11.29190003,1327.3,1327.2,0.10097187]
[1673276325042,3.75781003,1327.3,1327.2,0.10097187]
[1673276325248,3.69327019,1327.3,1327.2,0.10097187]
[1673276325910,5.94653949,1327.3,1327.2,0.10097187]
[1673276326116,3.75781003,1327.3,1327.2,0.10097187]
[1673276326340,3.69327019,1327.3,1327.2,0.10097187]
[1673276326618,5.04927019,1327.3,1327.2,0.10097187]
[1673276326783,28.84273559,1327.3,1327.2,0.10097187]
[1673276326991,28.83699923,1327.3,1327.2,0.10097187]
[1673276327376,36.62909923,1327.3,1327.2,0.10097187]
[1673276327606,33.24792537,1327.3,1327.2,0.10097187]
[1673276327816,40.4267227,1327.3,1327.2,7.187e-05]
[1673276328029,4.0,1327.2,1326.8,93.91873348]
[1673276328215,1.12707252,1326.9,1326.8,86.38187348]
[1673276328438,1.12707252,1326.9,1326.8,71.67573348]
[1673276328742,1.12707252,1326.9,1326.8,74.67573348]
[1673276330018,1.12707252,1326.9,1326.8,60.67573348]
[1673276330456,1.12707252,1326.9,1326.8,25.67573348]
[1673276330624,1.12707252,1326.9,1326.8,22.67573348]
[1673276330983,2.81768131,1326.9,1326.8,22.67573348]
[1673276331358,1.69060879,1326.9,1326.8,0.06524348]
[1673276331580,4.25425257,1326.9,1326.7,59.52564348]
[1673276332026,4.25425257,1326.9,1326.7,59.35232348]
[1673276332615,1.12734328,1326.8,1326.7,59.35232348]
[1673276333280,1.12734328,1326.8,1326.7,57.67760348]
[1673276333489,2.81795207,1326.9,1326.7,57.67760348]
[1673276333668,1.12734328,1326.8,1326.7,57.67760348]
[1673276334083,1.12734328,1326.8,1326.7,42.60262348]
[1673276334461,1.12734328,1326.8,1326.7,50.14011348]
[1673276334845,1.12734328,1326.8,1326.7,57.67760348]
[1673276335347,1.12734328,1326.8,1326.7,35.06524348]
[1673276336301,2.88249191,1326.9,1326.7,57.67771348]
[1673276336522,2.81795207,1326.9,1326.7,57.67771348]
[1673276338289,3.33161577,1326.9,1326.7,35.06524348]
[1673276338506,3.33161577,1326.9,1326.7,57.67771348]
[1673276341064,3.33161577,1326.9,1326.7,22.67771348]
[1673276341442,3.33161577,1326.9,1326.7,57.67771348]
[1673276341660,1.64100698,1326.9,1326.7,57.67771348]
[1673276341866,3.33161577,1326.9,1326.7,57.67771348]
[1673276343167,2.81795207,1326.9,1326.7,57.67771348]
[1673276343374,1.12734328,1326.9,1326.7,57.67771348]
[1673276347222,2.81795207,1327.0,1326.7,61.47537412]
[1673276347911,1.12734328,1326.9,1326.7,61.47537412]
[1673276348068,1.12734328,1326.9,1326.7,61.47178162]
[1673276348275,1.12734328,1326.9,1326.7,61.47378162]
[1673276348515,2.81795207,1327.0,1326.7,61.47378162]
[1673276349549,1.12734328,1326.9,1326.7,61.47378162]
[1673276353147,2.81795207,1326.9,1326.7,61.47378162]
[1673276354844,1.12734328,1326.9,1326.7,61.47378162]
[1673276355030,2.81795207,1326.9,1326.7,61.47378162]
[1673276355379,1.12734328,1326.9,1326.7,61.47378162]
[1673276356291,1.19188312,1327.0,1326.8,19.15866064]
[1673276356635,1.19188312,1327.0,1326.9,22.60908]
[1673276356636,1.69060879,1327.0,1326.9,22.60908]
[1673276356956,2.81931044,1327.0,1326.9,22.67273098]
[1673276357555,2.81931044,1327.0,1326.9,15.13637098]
[1673276357763,2.81931044,1327.0,1326.9,22.67273098]
[1673276358755,1.69060879,1327.0,1326.9,22.67273098]
[1673276359445,0.002,1327.1,1326.9,35.83139162]
[1673276359805,0.7947107,1327.4,1327.1,0.91777269]
[1673276360016,0.7387107,1327.4,1327.3,36.60227]
[1673276360175,0.7387107,1327.4,1327.3,39.66592098]
[1673276360965,0.7387107,1327.4,1327.3,56.53002098]
[1673276363534,7e-07,1327.4,1327.3,62.4450388]
[1673276363794,7.8451,1327.7,1327.3,70.2091288]
[1673276363968,7.8451,1327.7,1327.4,12.37966064]
[1673276364175,7.8451,1327.7,1327.5,30.1318]
[1673276364400,0.066,1327.7,1327.5,30.19545098]
[1673276364604,0.5651,1327.8,1327.5,30.19545098]
[1673276365377,11.05338465,1327.9,1327.7,15.361]
[1673276365378,0.066,1327.9,1327.7,15.361]
[1673276365595,7e-07,1328.0,1327.9,34.12272]
[1673276365755,7e-07,1328.0,1327.9,71.61944992]
[1673276365960,7e-07,1328.0,1327.9,74.62125162]
[1673276366168,7e-07,1328.0,1327.9,76.7386088]
[1673276366410,9.94640029,1328.8,1327.9,76.7386088]
[1673276366411,2.89456189,1329.0,1327.9,78.16551093]
[1673276366642,12.07649,1329.4,1327.9,78.16551093]
[1673276366643,3.99120177,1329.5,1328.9,25.79766064]
[1673276366817,0.1113254,1329.9,1329.4,24.722]
[1673276366818,0.03,1329.8,1329.4,24.722]
[1673276367024,14.9059717,1330.0,1329.7,25.79766064]
[1673276367233,14.9059717,1330.0,1329.9,25.79766064]
[1673276367234,14.9219717,1330.0,1329.9,25.79766064]
[1673276367484,14.9219717,1330.0,1329.9,26.41939162]
[1673276367485,2.9490017,1330.0,1329.9,26.41939162]
[1673276367702,0.06,1330.5,1329.9,26.41939162]
[1673276367703,0.5639,1330.8,1329.9,22.85173098]
[1673276368009,0.5639,1330.8,1330.0,0.23]
[1673276368010,0.03,1330.5,1330.0,0.23]
[1673276368327,0.03,1330.5,1329.9,0.096]
[1673276368328,3.134,1330.5,1329.9,0.096]
[1673276368645,3.134,1330.5,1329.6,0.156]
[1673276368646,4.0,1330.1,1329.6,0.156]
[1673276368795,4.0,1330.1,1329.1,3.134]
[1673276368796,14.0,1330.0,1329.1,8.069]
[1673276369004,0.066,1330.0,1329.3,4.0]
[1673276369266,4.06,1330.1,1329.3,7.52261]
[1673276369267,4.0,1330.1,1329.3,7.52261]
[1673276369586,1.349,1329.6,1329.3,0.064]
[1673276369740,1.361,1329.5,1328.8,6.13720635]
[1673276369954,1.361,1329.4,1328.8,0.064]
[1673276370202,1.361,1329.4,1328.8,0.002]
[1673276370203,12.791,1329.4,1328.8,0.002]
[1673276370428,7.52445,1329.0,1328.3,0.3401486]
[1673276370583,7.533,1328.9,1328.1,4.73216171]
[1673276370796,7.533,1328.9,1328.1,4.66616171]
[1673276370797,2.722,1328.2,1328.1,4.66616171]
[1673276371021,0.066,1328.3,1328.0,0.07]
[1673276371211,0.066,1328.5,1328.2,22.0]
[1673276371421,11.41010487,1328.8,1328.4,22.0]
[1673276371422,13.3182,1328.8,1328.4,22.0]
[1673276371674,9.3182,1328.8,1328.6,14.0]
[1673276371942,9.3182,1328.8,1328.6,0.066]
[1673276371943,1.96252,1328.8,1328.6,0.066]
[1673276372097,14.24858,1328.7,1328.2,0.052]
[1673276372282,4.0,1328.5,1328.1,0.12350155]
[1673276372491,1.361,1328.4,1328.1,0.12350155]
[1673276372706,7.52851,1328.3,1328.1,0.12350155]
[1673276372893,4.083,1328.2,1328.1,0.12350155]
[1673276373106,4.648,1328.2,1328.1,0.12350155]
[1673276373317,7.287,1328.2,1328.1,0.12350155]
[1673276373580,12.15998,1328.2,1328.1,0.12350155]
[1673276373799,17.358829,1328.2,1328.1,0.00050155]
[1673276373949,17.358829,1328.2,1327.6,0.8534509]
[1673276374163,2.722,1327.7,1327.5,40.4676281]
[1673276374438,1.427,1327.8,1327.5,40.4676281]
[1673276374580,4.0,1327.5,1327.1,0.06]
[1673276374787,1.351,1327.3,1327.0,22.0]
[1673276374998,1.361,1327.4,1327.3,3.24143269]
[1673276375245,0.5653,1327.5,1327.3,2.34943269]
[1673276375473,5.361,1327.4,1327.2,0.066]
[1673276375661,1.361,1327.3,1326.8,11.8354509]
[1673276375880,2.6052,1327.3,1326.8,0.9194509]
[1673276376186,1.2442,1327.3,1326.8,0.86751334]
[1673276376518,4.2442,1327.3,1326.8,0.86751334]
[1673276376733,1.68467821,1327.2,1326.8,0.8534509]
[1673276376890,12.4428406,1327.3,1326.8,0.10835563]
[1673276377101,12.4428406,1327.3,1326.9,8.0]
[1673276377102,1.50700001,1327.0,1326.9,8.0]
[1673276377305,1.50700001,1327.0,1326.9,8.066]
[1673276377565,1.50700001,1327.0,1326.9,0.066]
[1673276377775,1.50700001,1327.0,1326.8,0.10835563]
[1673276378726,1.50700001,1327.0,1326.9,8.0]